bitfinex-derivatives/quotes_ETHF0:USTF0_20260123
["timestamp","ask_amount","ask_price","bid_price","bid_amount"]
[1769172006995,1.24316096,2934.9,2933.7,0.14570846]
[1769172007191,1.08137861,2935.0,2933.7,0.14570846]
[1769172007402,1.24312901,2934.9,2933.7,0.14570846]
[1769172007595,1.08137861,2935.0,2933.7,0.14570846]
[1769172007797,1.24305185,2934.9,2933.7,0.14570846]
[1769172008102,1.08137861,2935.0,2933.7,0.14570846]
[1769172008300,1.24305176,2934.9,2933.7,0.14570846]
[1769172008501,1.08137861,2935.0,2933.7,0.14570846]
[1769172008696,1.24294605,2934.9,2933.7,0.14570846]
[1769172009000,0.17058,2935.0,2933.8,0.91079861]
[1769172009198,1.24294486,2934.9,2933.7,0.14570846]
[1769172009400,0.17058,2935.0,2933.7,0.14570846]
[1769172009706,1.24282088,2934.9,2933.7,0.14570846]
[1769172010004,0.17058,2935.0,2933.7,0.14570846]
[1769172010308,0.304105,2934.9,2933.7,0.14570846]
[1769172010498,1.08137861,2935.0,2933.7,0.14570846]
[1769172010699,0.30407494,2934.9,2933.7,0.14570846]
[1769172010902,1.08137861,2935.0,2933.7,0.14570846]
[1769172011096,0.00355425,2935.4,2934.2,0.91079861]
[1769172011303,0.00355425,2935.4,2934.2,1.05674356]
[1769172011501,0.91435286,2935.4,2934.2,0.14594495]
[1769172011704,0.91435286,2935.4,2934.0,0.91079861]
[1769172012907,0.91435286,2935.4,2934.0,1.05674356]
[1769172014209,0.91435286,2935.4,2934.1,0.14594495]
[1769172016709,0.00355425,2935.4,2934.2,0.91079861]
[1769172019005,0.91435286,2935.4,2934.1,0.14594495]
[1769172023811,0.91079861,2934.4,2933.4,0.17068]
[1769172024010,0.91079861,2934.1,2933.2,0.0051164]
[1769172024413,0.91079861,2934.4,2933.2,0.0051164]
[1769172025009,0.13923003,2934.6,2933.2,1.06185996]
[1769172027018,0.13923003,2934.6,2933.3,0.14594495]
[1769172028214,5.31155425,2935.4,2933.6,0.14594495]
[1769172028215,0.91079861,2935.0,2933.6,0.14594495]
[1769172028414,0.13923003,2935.1,2933.8,1.05674356]
[1769172028717,0.91079861,2934.7,2933.5,0.91079861]
[1769172028921,1.05002864,2935.0,2933.6,0.14594495]
[1769172029215,0.91079861,2934.7,2933.3,0.17068]
[1769172029415,0.91079861,2934.4,2933.2,0.15106135]
[1769172030315,0.91079861,2933.6,2932.3,0.14594495]
[1769172031618,0.91591501,2933.3,2931.9,3.55794495]
[1769172031812,0.91907203,2933.3,2931.9,4.46874356]
[1769172032217,1.07034824,2933.3,2931.9,4.46874356]
[1769172032416,1.07034824,2933.3,2931.9,3.412]
[1769172033023,1.07034824,2933.3,2931.9,4.32279861]
[1769172033522,1.07034824,2933.3,2931.9,4.32665135]
[1769172034922,0.15954963,2933.3,2931.9,3.41585274]
[1769172038631,0.15954963,2933.3,2931.9,3.56188601]
[1769172044536,0.33022963,2933.3,2931.9,3.56188601]
[1769172045638,0.33022963,2933.3,2931.9,0.14988601]
[1769172053139,0.15127621,2932.8,2931.9,0.00385274]
[1769172053739,0.17071,2932.9,2930.6,3.3287845]
[1769172053740,0.17075,2932.2,2930.6,3.04863232]
[1769172053939,0.15127621,2932.1,2930.1,0.14603327]
[1769172054835,0.15127621,2932.1,2930.4,0.14603327]
[1769172055239,0.17076,2932.0,2930.4,0.14603327]
[1769172055544,0.0051164,2931.5,2930.4,0.14603327]
[1769172061445,0.0051164,2931.5,2930.2,0.17086]
[1769172061644,0.0051164,2931.5,2930.1,0.00344641]
[1769172062946,0.15085934,2931.5,2930.1,0.00344641]
[1769172063348,0.32164934,2931.5,2930.1,0.00344641]
[1769172063648,0.31653294,2931.4,2930.1,0.00344641]
[1769172063943,0.14574294,2931.3,2930.1,0.00344641]
[1769172067449,0.17079,2931.4,2930.1,0.00344641]
[1769172070452,0.31023848,2931.4,2930.1,0.00344641]
[1769172071452,0.13944848,2931.3,2930.1,0.00344641]
[1769172074651,0.17079,2931.4,2930.1,0.00344641]
[1769172076954,0.17079,2931.4,2930.1,0.91546154]
[1769172077158,0.17079,2931.4,2930.1,1.05376939]
[1769172077351,0.0051164,2931.5,2930.1,1.05376939]
[1769172079555,0.0051164,2931.5,2930.2,0.13830785]
[1769172079755,0.0051164,2931.5,2930.6,0.13830785]
[1769172080850,0.13944848,2932.1,2930.6,0.17084]
[1769172081060,0.13944848,2932.1,2930.8,0.14342425]
[1769172082359,0.17074,2932.4,2931.0,0.13830785]
[1769172082564,0.13944848,2932.2,2930.8,0.0051164]
[1769172082859,0.13944848,2932.0,2930.8,0.0051164]
[1769172083060,0.13944848,2931.8,2930.8,0.0051164]
[1769172083266,0.13944848,2931.6,2930.8,0.0051164]
[1769172083453,0.93623163,2931.7,2930.2,0.13830785]
[1769172083454,0.0051164,2931.7,2930.2,0.13830785]
[1769172084358,0.0051164,2931.7,2930.6,0.13830785]
[1769172084568,0.13944848,2932.8,2931.0,0.13830785]
[1769172084867,1.38038422,2932.7,2931.1,0.13830785]
[1769172085059,1.24093574,2932.6,2931.1,0.13830785]
[1769172085356,0.93721264,2932.5,2931.1,0.13830785]
[1769172085663,0.13944848,2932.7,2931.2,0.13830785]
[1769172085853,0.93697025,2932.6,2931.2,0.13830785]
[1769172086054,0.93697025,2932.5,2931.3,0.13830785]
[1769172086361,0.13944848,2933.1,2931.4,0.13830785]
[1769172086561,0.93675679,2933.0,2931.4,0.13830785]
[1769172086761,0.93675679,2932.9,2931.4,0.13830785]
[1769172086959,0.13944848,2933.1,2931.4,0.13830785]
[1769172087157,0.93672369,2933.0,2931.4,0.13830785]
[1769172087462,0.13944848,2933.1,2931.4,0.13830785]
[1769172087866,0.13944848,2933.1,2931.4,0.30909785]
[1769172088066,0.13944848,2933.1,2931.5,0.13830785]
[1769172088263,0.13944848,2933.1,2931.5,0.30909785]
[1769172088472,0.13944848,2933.1,2931.6,0.13830785]
[1769172089071,0.00315702,2933.3,2931.7,0.13830785]
[1769172089562,0.00315702,2933.3,2931.7,0.30907785]
[1769172089865,0.00315702,2933.3,2932.2,0.0051164]
[1769172090061,0.00315702,2933.3,2932.2,0.00905601]
[1769172090863,0.00315702,2933.3,2932.2,0.14736386]
[1769172094966,0.00315702,2933.3,2932.2,0.31811386]
[1769172095272,0.00315702,2933.3,2932.3,0.15167329]
[1769172095464,0.13944848,2934.0,2932.3,0.15167329]
[1769172095663,0.13944848,2934.0,2932.4,0.15167329]
[1769172095872,0.14871147,2934.4,2932.6,0.15167329]
[1769172096469,0.15115449,2934.4,2932.6,0.15167329]
[1769172100372,0.15115449,2934.4,2932.7,0.15167329]
[1769172100574,0.15115449,2934.4,2932.8,0.15167329]
[1769172102176,0.15115449,2934.4,2932.9,0.15167329]
[1769172105369,0.00244302,2934.4,2932.9,0.15167329]
[1769172108474,0.15115449,2934.4,2932.9,0.15167329]
[1769172112075,0.00244302,2934.4,2933.2,0.91046294]
[1769172112382,0.00244302,2934.4,2933.2,1.06213623]
[1769172114575,0.00244302,2934.4,2933.2,0.15167329]
[1769172116282,0.00244302,2934.4,2933.4,0.15167329]
[1769172116984,0.00244302,2934.4,2933.6,0.91029206]
[1769172117882,0.00244302,2934.4,2933.7,0.0051164]
[1769172124786,0.00244302,2934.4,2933.7,0.15646902]
[1769172124987,0.17058,2935.0,2933.7,0.15646902]
[1769172125185,1.24250604,2934.9,2933.7,0.15646902]
[1769172125387,1.24250604,2934.8,2933.7,0.15646902]
[1769172125583,1.24250604,2934.7,2933.7,0.15646902]
[1769172125785,0.93833492,2934.6,2933.7,0.15646902]
[1769172125980,0.00344277,2934.6,2933.7,0.15646902]
[1769172129791,0.93858781,2934.5,2933.7,0.15646902]
[1769172129986,0.00344277,2934.6,2933.7,0.15646902]
[1769172130278,0.93858781,2934.5,2933.7,0.15646902]
[1769172130483,0.00344277,2934.6,2933.7,0.15646902]
[1769172130684,0.93870872,2934.5,2933.9,0.91029206]
[1769172130887,0.00344277,2934.6,2933.9,0.91029206]
[1769172131088,0.93870952,2934.5,2933.9,0.91029206]
[1769172131287,0.00344277,2934.6,2933.9,0.91029206]
[1769172131590,0.93883261,2934.5,2933.9,0.91029206]
[1769172131793,0.00344277,2934.6,2933.9,0.91029206]
[1769172131993,0.93883435,2934.5,2933.9,0.91029206]
[1769172132186,0.00344277,2934.6,2933.9,0.91029206]
[1769172132392,0.93886669,2934.5,2933.9,0.91029206]
[1769172132588,0.00344277,2934.6,2933.9,0.91029206]
[1769172132788,0.93884612,2934.5,2933.9,0.91029206]
[1769172132992,0.00344277,2934.6,2933.9,0.91029206]
[1769172133192,0.93884617,2934.5,2933.9,0.91029206]
[1769172133395,0.00344277,2934.6,2933.9,0.91029206]
[1769172133589,0.93887719,2934.5,2933.9,0.91029206]
[1769172133790,0.14779108,2935.2,2933.9,0.91029206]
[1769172133990,0.44083942,2935.1,2933.9,0.91029206]
[1769172134289,0.30445963,2935.0,2933.9,0.91029206]
[1769172134490,0.13637979,2935.1,2933.9,0.91029206]
[1769172134795,0.30440188,2935.0,2933.9,0.91029206]
[1769172134996,0.13881657,2935.1,2933.9,0.91029206]
[1769172135194,0.30440072,2935.0,2933.9,0.91029206]
[1769172135391,0.13881657,2935.1,2933.9,0.91029206]
[1769172135593,0.13881657,2935.1,2933.7,0.0051164]
[1769172135594,0.13881657,2935.1,2934.2,0.91029206]
[1769172135792,0.00243678,2935.1,2934.2,0.91029206]
[1769172139502,0.00243678,2935.1,2933.9,0.91029206]
[1769172141596,0.00243678,2935.1,2934.2,0.91029206]
[1769172145600,0.00243678,2935.1,2933.9,0.91029206]
[1769172147493,0.00243678,2935.1,2934.5,0.91029206]
[1769172147694,0.32597406,2935.9,2934.5,0.91343523]
[1769172148002,1.3971171,2935.8,2934.5,0.91343523]
[1769172148203,1.24167304,2935.7,2934.5,0.91343523]
[1769172148500,1.24167304,2935.6,2934.5,0.91343523]
[1769172148704,1.24167304,2935.5,2934.5,0.91343523]
[1769172148905,0.00321663,2935.6,2934.5,0.91343523]
[1769172149097,1.24078273,2935.5,2934.5,0.91343523]
[1769172149298,0.00321663,2935.6,2934.5,0.91343523]
[1769172149498,1.24071852,2935.5,2934.5,0.91343523]
[1769172149804,0.00321663,2935.6,2934.5,0.91343523]
[1769172150003,0.30435761,2935.5,2934.5,0.91343523]
[1769172150204,0.00321663,2935.6,2934.5,0.91343523]
[1769172150403,0.30432087,2935.5,2934.5,0.91343523]
[1769172150606,0.00321663,2935.6,2934.8,0.91029206]
[1769172151203,0.00321663,2935.6,2934.5,0.00314317]
[1769172151204,0.91029206,2935.2,2934.5,0.00314317]
[1769172151505,0.15544406,2935.4,2934.5,0.00314317]
[1769172151699,1.24045922,2935.3,2934.5,0.00314317]
[1769172151900,0.30428994,2935.2,2934.5,0.00314317]
[1769172152099,0.15544406,2935.4,2934.5,0.00314317]
[1769172152295,1.24044485,2935.3,2934.5,0.00314317]
[1769172152498,0.30428647,2935.2,2934.5,0.00314317]
[1769172152702,0.32600406,2935.4,2934.5,0.00314317]
[1769172152902,1.24059016,2935.3,2934.5,0.00314317]
[1769172153102,0.30432181,2935.2,2934.5,0.00314317]
[1769172153302,0.32600406,2935.4,2934.5,0.00314317]
[1769172153504,1.06983678,2935.2,2933.7,1.08606846]
[1769172153713,0.15954472,2935.0,2933.7,1.08606846]
[1769172154507,0.15954472,2935.0,2933.7,1.09043252]
[1769172156608,0.33010472,2935.4,2934.0,0.91029206]
[1769172156813,0.15954472,2935.2,2934.0,0.91029206]
[1769172157112,0.3044526,2935.1,2934.0,0.91029206]
[1769172157408,0.15954472,2935.2,2934.0,0.91029206]
[1769172157606,0.30447926,2935.1,2934.0,0.91029206]
[1769172157809,0.15954472,2935.2,2934.0,0.91029206]
[1769172158004,0.30447829,2935.1,2934.0,0.91029206]
[1769172158211,0.15954472,2935.2,2934.0,0.91029206]
[1769172158406,0.30450904,2935.1,2934.0,0.91029206]
[1769172158605,0.15954472,2935.2,2934.0,0.91029206]
[1769172158806,0.30450808,2935.1,2934.0,0.91029206]
[1769172159106,0.15954472,2935.2,2934.0,0.91029206]
[1769172159305,0.3045015,2935.1,2934.0,0.91029206]
[1769172159506,1.06983678,2935.2,2934.0,0.91029206]
[1769172159709,0.30453512,2935.1,2934.0,0.91029206]
[1769172159903,1.06983678,2935.2,2934.0,0.91029206]
[1769172160113,0.30452991,2935.1,2934.0,0.91029206]
[1769172160314,0.30452991,2935.1,2933.7,1.23960269]
[1769172160315,0.15954472,2935.1,2933.7,1.23960269]
[1769172161315,0.30461187,2935.0,2933.7,1.23960269]
[1769172161517,0.15954472,2935.1,2933.7,1.23960269]
[1769172161816,0.30461181,2935.0,2933.7,1.23960269]
[1769172162013,0.15954472,2935.1,2933.7,1.23960269]
[1769172162212,0.30461268,2935.0,2933.7,1.23960269]
[1769172162410,0.15954472,2935.1,2933.7,1.23960269]
[1769172162711,0.30466247,2935.0,2933.7,1.23960269]
[1769172162911,0.15954472,2935.1,2933.7,1.23960269]
[1769172163212,0.30466131,2935.0,2933.7,1.23960269]
[1769172163411,0.15954472,2935.1,2933.7,1.23960269]
[1769172163612,0.30471993,2935.0,2933.7,1.23960269]
[1769172163812,0.15954472,2935.1,2933.7,1.23960269]
[1769172164011,0.30471971,2935.0,2933.7,1.23960269]
[1769172164208,0.15954472,2935.1,2933.7,1.23960269]
[1769172164409,0.30472962,2935.0,2933.7,1.23960269]
[1769172164716,0.15954472,2935.1,2933.7,1.23960269]
[1769172164909,0.30473052,2935.0,2933.7,1.23960269]
[1769172165109,0.15954472,2935.1,2933.7,1.23960269]
[1769172165309,0.30472935,2935.0,2933.7,1.23960269]
[1769172165509,0.15954472,2935.1,2933.7,1.23960269]
[1769172165809,0.30473085,2935.0,2933.7,1.23960269]
[1769172166113,0.15954472,2935.1,2933.7,1.23960269]
[1769172166315,0.30473171,2935.0,2933.7,1.23960269]
[1769172166515,0.15954472,2935.1,2933.7,1.23960269]
[1769172166816,0.30472925,2935.0,2933.7,1.23960269]
[1769172167017,0.15954472,2935.1,2933.7,1.23960269]
[1769172167214,0.30472947,2935.0,2933.7,1.23960269]
[1769172167520,0.15954472,2935.1,2933.7,1.23960269]
[1769172167709,0.30472824,2935.0,2933.7,1.23960269]
[1769172167910,0.15954472,2935.1,2933.7,1.23960269]
[1769172168105,0.30472964,2935.0,2933.7,1.23960269]
[1769172168404,0.15954472,2935.1,2933.7,1.23960269]
[1769172168608,0.30473325,2935.0,2933.7,1.23960269]
[1769172168804,0.15954472,2935.1,2933.7,1.23960269]
[1769172169009,0.30478543,2935.0,2933.7,1.23960269]
[1769172169219,0.15954472,2935.1,2933.7,1.23960269]
[1769172169419,0.3047861,2935.0,2933.7,1.23960269]
[1769172169614,0.15954472,2935.1,2933.7,1.23960269]
[1769172169814,1.2424729,2935.0,2933.7,1.23960269]
[1769172170115,0.15954472,2935.1,2933.7,1.23960269]
[1769172170314,0.30478688,2935.0,2933.7,1.23960269]
[1769172170514,0.15954472,2935.1,2933.7,1.23960269]
[1769172170812,0.30478376,2935.0,2933.7,1.23960269]
[1769172171012,0.15954472,2935.1,2933.7,1.23960269]
[1769172171213,0.30478482,2935.0,2933.7,1.23960269]
[1769172171412,0.15954472,2935.1,2933.7,1.23960269]
[1769172171712,0.30478434,2935.0,2933.7,1.23960269]
[1769172171912,0.15954472,2935.1,2933.7,1.23960269]
[1769172172113,1.24255703,2935.0,2934.0,0.91029206]
[1769172172416,0.17057,2935.3,2934.0,0.91029206]
[1769172172716,1.24256498,2935.2,2934.0,0.91029206]
[1769172172912,1.24256498,2935.1,2934.0,0.91029206]
[1769172173112,0.30480853,2935.0,2934.0,0.91029206]
[1769172173417,0.17057,2935.3,2934.0,0.91029206]
[1769172173719,1.24257703,2935.2,2934.0,0.91029206]
[1769172173914,1.24257703,2935.1,2934.0,0.91029206]
[1769172174117,0.30481029,2935.0,2934.0,0.91029206]
[1769172174316,0.17057,2935.3,2934.0,0.91029206]
[1769172174516,1.24264626,2935.2,2934.0,0.91029206]
[1769172174717,1.24264626,2935.1,2934.0,0.91029206]
[1769172175016,0.30488362,2935.0,2934.0,0.91029206]
[1769172175317,0.17057,2935.3,2934.0,0.91029206]
[1769172175517,1.24305347,2935.2,2934.0,1.05946223]
[1769172175712,1.24305347,2935.1,2934.3,0.91029206]
[1769172175915,0.00321663,2935.6,2934.3,1.05946223]
[1769172176223,1.24314096,2935.5,2934.3,1.05946223]
[1769172176422,1.24314096,2935.4,2934.3,1.05946223]
[1769172176622,1.24314096,2935.3,2934.3,1.05946223]
[1769172176918,0.30494504,2935.2,2934.3,1.05946223]
[1769172177118,0.16276135,2935.6,2934.3,1.05946223]
[1769172177319,1.24309251,2935.5,2934.3,1.05946223]
[1769172177618,1.24309251,2935.4,2934.3,1.05946223]
[1769172177819,1.24309251,2935.3,2934.3,1.05946223]
[1769172178018,0.16276135,2935.6,2934.3,1.05946223]
[1769172178211,1.24305185,2935.5,2934.3,1.05946223]
[1769172178413,1.24305185,2935.4,2934.3,1.05946223]
[1769172178609,1.24305185,2935.3,2934.3,1.05946223]
[1769172178923,0.30492306,2935.2,2934.3,0.14917017]
[1769172179117,0.16276135,2935.6,2934.3,0.14917017]
[1769172179316,1.24327706,2935.5,2934.3,0.14917017]
[1769172179517,1.24327706,2935.4,2934.3,0.14917017]
[1769172179718,1.24327706,2935.3,2934.3,0.14917017]
[1769172179918,0.30503401,2935.2,2934.3,0.14917017]
[1769172180116,0.16276135,2935.6,2934.3,0.14917017]
[1769172180425,1.24339138,2935.5,2934.3,0.14917017]
[1769172180627,1.24339138,2935.4,2934.3,0.14917017]
[1769172180927,0.30506156,2935.3,2933.9,3.19780249]
[1769172181128,0.16276135,2935.6,2934.0,0.14917017]
[1769172181328,1.24365321,2935.5,2934.0,0.14917017]
[1769172181519,1.24365321,2935.4,2934.1,0.31980017]
[1769172181824,0.30512364,2935.3,2934.2,0.14917017]
[1769172182027,0.00321663,2935.6,2934.2,1.05903908]
[1769172182221,0.00321663,2935.6,2934.6,0.90986891]
[1769172182624,0.00321663,2935.6,2934.6,1.06893421]
[1769172188135,0.00321663,2935.6,2934.7,0.1543078]
[1769172190333,6.498,2936.1,2934.7,0.1543078]
[1769172190533,0.30467492,2936.0,2934.7,0.1543078]
[1769172190836,0.3263671,2936.3,2934.7,0.1543078]
[1769172191030,1.24190222,2936.2,2934.7,0.1543078]
[1769172191233,1.24190222,2936.1,2934.7,0.1543078]
[1769172191431,0.30470173,2936.0,2935.2,0.0051164]
[1769172192128,0.00355504,2936.1,2935.2,0.0051164]
[1769172197237,0.15941214,2936.1,2935.2,0.0051164]
[1769172200743,0.30479389,2936.0,2935.2,0.0051164]
[1769172200941,0.15941214,2936.1,2935.2,0.0051164]
[1769172201145,0.30479585,2936.0,2935.2,0.0051164]
[1769172201437,0.15941214,2936.1,2935.2,0.0051164]
[1769172201740,0.30484277,2936.0,2935.2,0.0051164]
[1769172201939,0.15941214,2936.1,2935.2,0.0051164]
[1769172202237,0.30484251,2936.0,2935.2,0.0051164]
[1769172202436,0.15941214,2936.1,2935.2,0.0051164]
[1769172202639,1.24274985,2936.0,2935.2,0.0051164]
[1769172202833,0.15941214,2936.1,2935.2,0.0051164]
[1769172203034,0.30485438,2936.0,2935.2,0.0051164]
[1769172203232,0.15941214,2936.1,2935.2,0.0051164]
[1769172203431,0.30492113,2936.0,2935.2,0.0051164]
[1769172203632,0.15941214,2936.1,2935.2,0.0051164]
[1769172203840,0.30482897,2936.0,2935.2,0.0051164]
[1769172204031,0.15941214,2936.1,2935.2,0.0051164]
[1769172204236,0.30482242,2936.0,2935.2,0.0051164]
[1769172204541,0.15941214,2936.1,2935.2,0.0051164]
[1769172204741,1.24273948,2936.0,2935.2,0.0051164]
[1769172205039,0.15941214,2936.1,2935.2,0.0051164]
[1769172205241,1.39865561,2936.0,2935.2,0.0051164]
[1769172205431,0.1558571,2936.0,2935.2,0.0051164]
[1769172205637,0.30499133,2935.9,2935.2,0.0051164]
[1769172205836,0.1558571,2936.0,2935.2,0.0051164]
[1769172206036,0.30498703,2935.9,2935.2,0.0051164]
[1769172206239,0.1558571,2936.0,2935.2,0.0051164]
[1769172206538,0.30504724,2935.9,2935.2,0.0051164]
[1769172206835,0.1558571,2936.0,2935.2,0.0051164]
[1769172207037,0.30502088,2935.9,2935.2,0.0051164]
[1769172207237,0.1558571,2936.0,2935.2,0.0051164]
[1769172207542,1.24353028,2935.9,2935.2,0.0051164]
[1769172207743,0.1558571,2936.0,2935.2,0.0051164]
[1769172208042,1.24339131,2935.9,2935.2,0.0051164]
[1769172208234,0.1558571,2936.0,2935.2,0.0051164]
[1769172208435,1.24351661,2935.9,2935.2,0.0051164]
[1769172208638,0.30514467,2935.8,2935.2,0.0051164]
[1769172208830,0.1558571,2936.0,2935.2,0.0051164]
[1769172209036,1.24368489,2935.9,2935.2,0.0051164]
[1769172209232,0.46101063,2935.8,2935.2,0.0051164]
[1769172209435,0.1558571,2935.8,2935.2,0.0051164]
[1769172211244,0.30540228,2935.7,2935.2,0.0051164]
[1769172211445,0.1558571,2935.8,2935.2,0.0051164]
[1769172212242,0.3054399,2935.7,2935.2,0.0051164]
[1769172212443,0.17407504,2936.1,2935.2,0.0051164]
[1769172212640,1.24487128,2936.0,2935.2,0.0051164]
[1769172212841,1.24487128,2935.9,2935.2,0.0051164]
[1769172213044,1.24487128,2935.8,2935.2,0.0051164]
[1769172213247,0.33012382,2936.1,2935.2,0.0051164]
[1769172213544,1.24494183,2936.0,2935.2,0.0051164]
[1769172213738,1.24494183,2935.9,2935.2,0.0051164]
[1769172213939,1.24494183,2935.8,2935.2,0.0051164]
[1769172214247,0.30546108,2935.7,2935.2,0.0051164]
[1769172214446,0.33012382,2936.1,2935.2,0.0051164]
[1769172214641,1.24503612,2936.0,2935.2,0.0051164]
[1769172214841,1.24503612,2935.9,2935.2,0.0051164]
[1769172215038,0.30548222,2935.8,2935.2,0.0051164]
[1769172215239,0.33012382,2936.1,2935.2,0.0051164]
[1769172215439,1.24505764,2936.0,2935.2,0.0051164]
[1769172215639,0.30548515,2935.9,2935.2,0.0051164]
[1769172215837,0.33012382,2936.1,2935.2,0.0051164]
[1769172216147,1.24506668,2936.0,2935.2,0.0051164]
[1769172216342,0.30549251,2935.9,2935.2,0.0051164]
[1769172216542,0.33012382,2936.1,2935.2,0.0051164]
[1769172216843,1.24506236,2936.0,2935.2,0.0051164]
[1769172217044,0.30549069,2935.9,2935.2,0.0051164]
[1769172217242,0.33012382,2936.1,2935.2,0.0051164]
[1769172217442,1.24506723,2936.0,2935.2,0.0051164]
[1769172217647,0.30549086,2935.9,2935.2,0.0051164]
[1769172217845,0.33012382,2936.1,2935.2,0.0051164]
[1769172218045,1.24506618,2936.0,2935.2,0.0051164]
[1769172218245,0.30549061,2935.9,2935.2,0.0051164]
[1769172218447,0.33012382,2936.1,2935.2,0.0051164]
[1769172218646,1.24503659,2936.0,2935.2,0.0051164]
[1769172218848,0.30548829,2935.9,2935.2,0.0051164]
[1769172219048,0.33012382,2936.1,2935.2,0.0051164]
[1769172219243,0.15604878,2935.8,2934.6,3.04863232]
[1769172219449,0.15604878,2935.6,2934.3,3.04863232]
[1769172219648,0.461537,2935.5,2934.2,3.04863232]
[1769172219849,0.15604878,2935.5,2934.2,3.04863232]
[1769172220049,0.15604878,2935.5,2934.1,3.04863232]
[1769172220954,0.30547273,2935.4,2934.0,3.38327973]
[1769172221254,0.15604878,2935.5,2934.0,3.38327973]
[1769172221447,0.30541089,2935.4,2934.0,3.38327973]
[1769172221754,0.15604878,2935.5,2934.0,3.21263973]
[1769172221949,1.4007015,2935.4,2934.0,0.16400741]
[1769172222147,0.30540903,2935.3,2934.0,0.16400741]
[1769172222353,0.15604878,2935.4,2934.0,0.16400741]
[1769172222942,0.15604878,2935.2,2933.9,3.04863232]
[1769172223154,0.15604878,2935.0,2933.7,0.00436406]
[1769172224852,1.39877421,2934.9,2933.7,0.00436406]
[1769172225053,0.15604878,2934.9,2933.7,0.00436406]
[1769172225657,0.15604878,2934.8,2933.7,0.00436406]
[1769172228755,0.15604878,2934.6,2933.7,0.00436406]
[1769172230055,0.32665878,2934.6,2933.7,0.00436406]
[1769172230256,0.32665878,2934.6,2933.1,3.411]
[1769172230257,0.15604878,2934.5,2933.1,3.411]
[1769172231053,0.0051164,2934.1,2933.1,3.411]
[1769172231255,0.0051164,2934.1,2933.1,3.41436128]
[1769172233162,0.16116518,2934.1,2933.1,3.41436128]
[1769172233555,0.0051164,2934.1,2933.1,3.41436128]
[1769172235262,0.0051164,2934.1,2933.1,3.57836869]
[1769172235962,0.0051164,2934.1,2933.1,3.41436128]
[1769172239566,0.0051164,2934.1,2933.1,3.57836869]
[1769172240860,0.0051164,2934.1,2933.3,0.91046631]
[1769172241262,0.0051164,2934.1,2933.1,0.00336128]
[1769172241470,0.91046631,2934.0,2933.1,0.00336128]
[1769172241668,0.91470798,2934.0,2933.1,0.00336128]
[1769172242565,0.15474403,2933.9,2933.1,0.00336128]
[1769172246260,0.15474403,2933.9,2932.5,0.91046631]
[1769172247368,0.15474403,2933.9,2932.5,0.91286736]
[1769172248962,0.00424167,2934.0,2933.1,0.91046631]
[1769172249164,0.00424167,2934.0,2932.8,0.91046631]
[1769172250863,0.00424167,2934.0,2933.4,0.91046631]
[1769172251275,0.00424167,2934.0,2933.1,0.91046631]
[1769172252674,0.00424167,2934.0,2932.8,0.91046631]
[1769172253069,0.00424167,2934.0,2932.8,1.06509691]
[1769172254372,0.00424167,2934.0,2933.1,0.91046631]
[1769172257182,0.00424167,2934.0,2933.4,0.91046631]
[1769172257382,0.0051164,2934.1,2933.4,0.91046631]
[1769172258277,0.00896811,2934.1,2933.4,0.91046631]
[1769172269200,0.15490562,2934.8,2933.5,0.0051164]
[1769172269400,1.24470568,2934.7,2933.5,0.0051164]
[1769172269601,1.24470568,2934.6,2933.6,0.91046631]
[1769172269906,0.17058,2935.0,2933.8,0.91046631]
[1769172270106,1.24484271,2934.9,2933.8,0.91046631]
[1769172270401,1.24484271,2934.8,2933.8,0.91046631]
[1769172270599,0.93970149,2934.7,2933.8,0.91046631]
[1769172270800,0.00383053,2934.9,2933.8,0.91046631]
[1769172271002,0.93971996,2934.8,2933.8,0.91046631]
[1769172271205,0.93971997,2934.7,2933.8,0.91046631]
[1769172271396,0.00383053,2934.9,2933.8,0.91046631]
[1769172271592,0.93971945,2934.8,2933.8,0.91046631]
[1769172271902,0.00383053,2934.9,2933.8,0.91046631]
[1769172272203,0.93973063,2934.8,2934.0,0.91046631]
[1769172272397,0.00383053,2934.9,2934.0,0.91046631]
[1769172272593,0.93968708,2934.8,2934.0,0.91046631]
[1769172272797,0.00383053,2934.9,2934.0,0.91046631]
[1769172279208,0.17055,2935.5,2934.3,0.91046631]
[1769172279502,0.15903219,2935.7,2934.3,0.91046631]
[1769172279706,1.24231452,2935.6,2934.3,0.91046631]
[1769172279908,0.15903219,2935.7,2934.3,0.91046631]
[1769172280097,0.30468502,2935.6,2934.3,0.91046631]
[1769172280302,0.00275729,2935.6,2934.3,0.91046631]
[1769172284313,0.00275729,2935.6,2934.5,0.91046631]
[1769172288019,0.00275729,2935.6,2934.5,1.06474913]
[1769172290623,0.00275729,2935.6,2934.7,0.91046631]
[1769172290824,0.00275729,2935.6,2934.9,0.91046631]
[1769172291824,0.00275729,2935.6,2934.7,0.91347631]
[1769172294020,0.00275729,2935.6,2935.0,0.91046631]
[1769172294726,0.00275729,2935.6,2935.0,0.91558271]
[1769172295321,7.7380085,2936.3,2935.0,0.91558271]
[1769172295527,0.93786896,2936.2,2935.0,0.91558271]
[1769172295831,0.93786896,2936.1,2935.0,0.91558271]
[1769172296021,1.2400085,2936.3,2935.0,0.91558271]
[1769172296223,0.93786947,2936.2,2935.0,0.91558271]
[1769172296520,0.93786947,2936.1,2935.0,0.91558271]
[1769172296725,0.9148072,2936.2,2935.0,0.91558271]
[1769172296921,0.93771584,2936.1,2935.0,0.0051164]
[1769172297120,0.9148072,2936.2,2935.0,0.0051164]
[1769172297322,0.93759437,2936.1,2935.0,0.0051164]
[1769172297517,1.07383939,2936.2,2935.0,0.0051164]
[1769172297720,0.93759699,2936.1,2935.0,0.0051164]
[1769172297920,1.07383939,2936.2,2935.0,0.0051164]
[1769172298123,0.93758325,2936.1,2935.0,0.0051164]
[1769172298322,1.07383939,2936.2,2935.0,0.0051164]
[1769172298626,0.93710503,2936.1,2935.0,0.0051164]
[1769172298826,1.07383939,2936.2,2935.0,0.0051164]
[1769172299029,0.93711116,2936.1,2935.0,0.0051164]
[1769172299221,1.07383939,2936.2,2935.0,0.0051164]
[1769172299624,0.93703702,2936.1,2935.0,0.0051164]
[1769172299827,1.07383939,2936.2,2935.0,0.0051164]
[1769172300034,0.93703716,2936.1,2935.0,0.0051164]
[1769172300222,1.07383939,2936.2,2935.0,0.0051164]
[1769172300427,1.09606729,2936.1,2935.0,0.0051164]
[1769172300629,0.15903219,2936.1,2935.0,0.0051164]
[1769172302131,0.15903219,2936.1,2935.0,0.91558271]
[1769172302727,0.00434089,2936.2,2935.2,0.91046631]
[1769172302926,0.00434089,2936.2,2935.0,0.0051164]
[1769172303233,0.00434089,2936.2,2935.0,0.1597315]
[1769172304029,0.00434089,2936.2,2935.2,0.1546151]
[1769172305229,0.17048,2936.8,2935.2,0.1546151]
[1769172305433,0.30443319,2936.7,2935.2,0.1546151]
[1769172305631,0.32261298,2937.1,2935.3,0.1546151]
[1769172305832,1.24170313,2937.0,2935.3,0.1546151]
[1769172306026,1.24170313,2936.9,2935.3,0.1546151]
[1769172306231,1.24170313,2936.8,2935.3,0.1546151]
[1769172306432,0.00337562,2936.9,2935.3,0.1546151]
[1769172306639,0.3043705,2936.8,2935.3,0.1546151]